{"text_format":"3","workbook":"xlsx","n_sheets":2,"sheets":["Projektsporing","Installation"],"not_rendered":{"defined_names":6},"read":"whole","date_system":"1900"}

{"sheet":"Projektsporing","index":0,"n_rows":13,"n_cols":15,"rows_kept":13}
[null,"Projektsporing"]
[null,null,"Procent over/under til markering med flag: ",{"v":0.25,"d":"25%"}]
[]
[null,"Projekt","Kategori","Tildelt til","Anslået\nstart","Anslået \nsluttidspunkt","Anslået arbejde (i timer)","Anslået varighed (i dage)","Faktisk \nstart","Faktisk\nsluttidspunkt","Flagikon for over/under – Faktisk arbejde (i timer)","Faktisk arbejde (i timer)","Flagikon for over/under – Faktisk varighed (i dage)","Faktisk varighed (i dage)","Bemærkninger"]
[null,"Projekt 1","Kategori 1","Medarbejder 1",{"$f":"TODAY()-65","v":"2016-10-03"},{"$f":"TODAY()-5","v":"2016-12-02"},210,{"$f":"IF(COUNTA(Projektsporing!$E5,Projektsporing!$F5)<>2,\"\",DAYS360(Projektsporing!$E5,Projektsporing!$F5,FALSE))","v":59},{"$f":"TODAY()-65","v":"2016-10-03"},{"$f":"TODAY()","v":"2016-12-07"},{"$f":"IFERROR(IF(ProjektSporing[Faktisk arbejde (i timer)]=0,\"\",IF(ABS((ProjektSporing[[#This Row],[Faktisk arbejde (i timer)]]-ProjektSporing[[#This Row],[Anslået arbejde (i timer)]])/ProjektSporing[[#This Row],[Anslået arbejde (i timer)]])>FlagProcent,1,0)),\"\")","v":1},300,{"$f":"IFERROR(IF(ProjektSporing[Faktisk varighed (i dage)]=0,\"\",IF(ABS((ProjektSporing[[#This Row],[Faktisk varighed (i dage)]]-ProjektSporing[[#This Row],[Anslået varighed (i dage)]])/ProjektSporing[[#This Row],[Anslået varighed (i dage)]])>FlagProcent,1,0)),\"\")","v":0},{"$f":"IF(COUNTA(Projektsporing!$I5,Projektsporing!$J5)<>2,\"\",DAYS360(Projektsporing!$I5,Projektsporing!$J5,FALSE))","v":64}]
[null,"Projekt 2","Kategori 2","Medarbejder 4",{"$f":"TODAY()-41","v":"2016-10-27"},{"$f":"TODAY()-10","v":"2016-11-27"},400,{"$f":"IF(COUNTA(Projektsporing!$E6,Projektsporing!$F6)<>2,\"\",DAYS360(Projektsporing!$E6,Projektsporing!$F6,FALSE))","v":30},{"$f":"TODAY()-41","v":"2016-10-27"},{"$f":"TODAY()-7","v":"2016-11-30"},{"$f":"IFERROR(IF(ProjektSporing[Faktisk arbejde (i timer)]=0,\"\",IF(ABS((ProjektSporing[[#This Row],[Faktisk arbejde (i timer)]]-ProjektSporing[[#This Row],[Anslået arbejde (i timer)]])/ProjektSporing[[#This Row],[Anslået arbejde (i timer)]])>FlagProcent,1,0)),\"\")","v":0},390,{"$f":"IFERROR(IF(ProjektSporing[Faktisk varighed (i dage)]=0,\"\",IF(ABS((ProjektSporing[[#This Row],[Faktisk varighed (i dage)]]-ProjektSporing[[#This Row],[Anslået varighed (i dage)]])/ProjektSporing[[#This Row],[Anslået varighed (i dage)]])>FlagProcent,1,0)),\"\")","v":0},{"$f":"IF(COUNTA(Projektsporing!$I6,Projektsporing!$J6)<>2,\"\",DAYS360(Projektsporing!$I6,Projektsporing!$J6,FALSE))","v":33}]
[null,"Projekt 3","Kategori 1","Medarbejder 2",{"$f":"TODAY()-100","v":"2016-08-29"},{"$f":"TODAY()-40","v":"2016-10-28"},500,{"$f":"IF(COUNTA(Projektsporing!$E7,Projektsporing!$F7)<>2,\"\",DAYS360(Projektsporing!$E7,Projektsporing!$F7,FALSE))","v":59},{"$f":"TODAY()-100","v":"2016-08-29"},{"$f":"TODAY()-27","v":"2016-11-10"},{"$f":"IFERROR(IF(ProjektSporing[Faktisk arbejde (i timer)]=0,\"\",IF(ABS((ProjektSporing[[#This Row],[Faktisk arbejde (i timer)]]-ProjektSporing[[#This Row],[Anslået arbejde (i timer)]])/ProjektSporing[[#This Row],[Anslået arbejde (i timer)]])>FlagProcent,1,0)),\"\")","v":0},500,{"$f":"IFERROR(IF(ProjektSporing[Faktisk varighed (i dage)]=0,\"\",IF(ABS((ProjektSporing[[#This Row],[Faktisk varighed (i dage)]]-ProjektSporing[[#This Row],[Anslået varighed (i dage)]])/ProjektSporing[[#This Row],[Anslået varighed (i dage)]])>FlagProcent,1,0)),\"\")","v":0},{"$f":"IF(COUNTA(Projektsporing!$I7,Projektsporing!$J7)<>2,\"\",DAYS360(Projektsporing!$I7,Projektsporing!$J7,FALSE))","v":71}]
[null,"Projekt 4","Kategori 2","Medarbejder 3",{"$f":"TODAY()-90","v":"2016-09-08"},{"$f":"TODAY()-80","v":"2016-09-18"},250,{"$f":"IF(COUNTA(Projektsporing!$E8,Projektsporing!$F8)<>2,\"\",DAYS360(Projektsporing!$E8,Projektsporing!$F8,FALSE))","v":10},{"$f":"TODAY()-90","v":"2016-09-08"},{"$f":"TODAY()-71","v":"2016-09-27"},{"$f":"IFERROR(IF(ProjektSporing[Faktisk arbejde (i timer)]=0,\"\",IF(ABS((ProjektSporing[[#This Row],[Faktisk arbejde (i timer)]]-ProjektSporing[[#This Row],[Anslået arbejde (i timer)]])/ProjektSporing[[#This Row],[Anslået arbejde (i timer)]])>FlagProcent,1,0)),\"\")","v":0},276,{"$f":"IFERROR(IF(ProjektSporing[Faktisk varighed (i dage)]=0,\"\",IF(ABS((ProjektSporing[[#This Row],[Faktisk varighed (i dage)]]-ProjektSporing[[#This Row],[Anslået varighed (i dage)]])/ProjektSporing[[#This Row],[Anslået varighed (i dage)]])>FlagProcent,1,0)),\"\")","v":1},{"$f":"IF(COUNTA(Projektsporing!$I8,Projektsporing!$J8)<>2,\"\",DAYS360(Projektsporing!$I8,Projektsporing!$J8,FALSE))","v":19}]
[null,"Projekt 5","Kategori 3","Medarbejder 2",{"$f":"TODAY()-90","v":"2016-09-08"},{"$f":"TODAY()-50","v":"2016-10-18"},300,{"$f":"IF(COUNTA(Projektsporing!$E9,Projektsporing!$F9)<>2,\"\",DAYS360(Projektsporing!$E9,Projektsporing!$F9,FALSE))","v":40},{"$f":"TODAY()-90","v":"2016-09-08"},{"$f":"TODAY()-44","v":"2016-10-24"},{"$f":"IFERROR(IF(ProjektSporing[Faktisk arbejde (i timer)]=0,\"\",IF(ABS((ProjektSporing[[#This Row],[Faktisk arbejde (i timer)]]-ProjektSporing[[#This Row],[Anslået arbejde (i timer)]])/ProjektSporing[[#This Row],[Anslået arbejde (i timer)]])>FlagProcent,1,0)),\"\")","v":0},310,{"$f":"IFERROR(IF(ProjektSporing[Faktisk varighed (i dage)]=0,\"\",IF(ABS((ProjektSporing[[#This Row],[Faktisk varighed (i dage)]]-ProjektSporing[[#This Row],[Anslået varighed (i dage)]])/ProjektSporing[[#This Row],[Anslået varighed (i dage)]])>FlagProcent,1,0)),\"\")","v":0},{"$f":"IF(COUNTA(Projektsporing!$I9,Projektsporing!$J9)<>2,\"\",DAYS360(Projektsporing!$I9,Projektsporing!$J9,FALSE))","v":46}]
[null,"Projekt 6","Kategori 4","Medarbejder 4",{"$f":"TODAY()-60","v":"2016-10-08"},{"$f":"TODAY()-50","v":"2016-10-18"},500,{"$f":"IF(COUNTA(Projektsporing!$E10,Projektsporing!$F10)<>2,\"\",DAYS360(Projektsporing!$E10,Projektsporing!$F10,FALSE))","v":10},{"$f":"TODAY()-60","v":"2016-10-08"},{"$f":"TODAY()-45","v":"2016-10-23"},{"$f":"IFERROR(IF(ProjektSporing[Faktisk arbejde (i timer)]=0,\"\",IF(ABS((ProjektSporing[[#This Row],[Faktisk arbejde (i timer)]]-ProjektSporing[[#This Row],[Anslået arbejde (i timer)]])/ProjektSporing[[#This Row],[Anslået arbejde (i timer)]])>FlagProcent,1,0)),\"\")","v":0},510,{"$f":"IFERROR(IF(ProjektSporing[Faktisk varighed (i dage)]=0,\"\",IF(ABS((ProjektSporing[[#This Row],[Faktisk varighed (i dage)]]-ProjektSporing[[#This Row],[Anslået varighed (i dage)]])/ProjektSporing[[#This Row],[Anslået varighed (i dage)]])>FlagProcent,1,0)),\"\")","v":1},{"$f":"IF(COUNTA(Projektsporing!$I10,Projektsporing!$J10)<>2,\"\",DAYS360(Projektsporing!$I10,Projektsporing!$J10,FALSE))","v":15}]
[null,"Projekt 7","Kategori 5","Medarbejder 1",{"$f":"TODAY()-44","v":"2016-10-24"},{"$f":"TODAY()-20","v":"2016-11-17"},750,{"$f":"IF(COUNTA(Projektsporing!$E11,Projektsporing!$F11)<>2,\"\",DAYS360(Projektsporing!$E11,Projektsporing!$F11,FALSE))","v":23},{"$f":"TODAY()-44","v":"2016-10-24"},{"$f":"TODAY()-15","v":"2016-11-22"},{"$f":"IFERROR(IF(ProjektSporing[Faktisk arbejde (i timer)]=0,\"\",IF(ABS((ProjektSporing[[#This Row],[Faktisk arbejde (i timer)]]-ProjektSporing[[#This Row],[Anslået arbejde (i timer)]])/ProjektSporing[[#This Row],[Anslået arbejde (i timer)]])>FlagProcent,1,0)),\"\")","v":0},790,{"$f":"IFERROR(IF(ProjektSporing[Faktisk varighed (i dage)]=0,\"\",IF(ABS((ProjektSporing[[#This Row],[Faktisk varighed (i dage)]]-ProjektSporing[[#This Row],[Anslået varighed (i dage)]])/ProjektSporing[[#This Row],[Anslået varighed (i dage)]])>FlagProcent,1,0)),\"\")","v":0},{"$f":"IF(COUNTA(Projektsporing!$I11,Projektsporing!$J11)<>2,\"\",DAYS360(Projektsporing!$I11,Projektsporing!$J11,FALSE))","v":28}]
[null,"Projekt 8","Kategori 2","Medarbejder 1",{"$f":"TODAY()-39","v":"2016-10-29"},{"$f":"TODAY()","v":"2016-12-07"},450,{"$f":"IF(COUNTA(Projektsporing!$E12,Projektsporing!$F12)<>2,\"\",DAYS360(Projektsporing!$E12,Projektsporing!$F12,FALSE))","v":38},{"$f":"TODAY()-45","v":"2016-10-23"},{"$f":"TODAY()-5","v":"2016-12-02"},{"$f":"IFERROR(IF(ProjektSporing[Faktisk arbejde (i timer)]=0,\"\",IF(ABS((ProjektSporing[[#This Row],[Faktisk arbejde (i timer)]]-ProjektSporing[[#This Row],[Anslået arbejde (i timer)]])/ProjektSporing[[#This Row],[Anslået arbejde (i timer)]])>FlagProcent,1,0)),\"\")","v":0},430,{"$f":"IFERROR(IF(ProjektSporing[Faktisk varighed (i dage)]=0,\"\",IF(ABS((ProjektSporing[[#This Row],[Faktisk varighed (i dage)]]-ProjektSporing[[#This Row],[Anslået varighed (i dage)]])/ProjektSporing[[#This Row],[Anslået varighed (i dage)]])>FlagProcent,1,0)),\"\")","v":0},{"$f":"IF(COUNTA(Projektsporing!$I12,Projektsporing!$J12)<>2,\"\",DAYS360(Projektsporing!$I12,Projektsporing!$J12,FALSE))","v":39}]
[null,"projekt 9","Kategori 4","Medarbejder 1","2016-02-05","2016-06-09",250,{"$f":"IF(COUNTA(Projektsporing!$E13,Projektsporing!$F13)<>2,\"\",DAYS360(Projektsporing!$E13,Projektsporing!$F13,FALSE))","v":124},"2016-03-05","2016-05-05",{"$f":"IFERROR(IF(ProjektSporing[Faktisk arbejde (i timer)]=0,\"\",IF(ABS((ProjektSporing[[#This Row],[Faktisk arbejde (i timer)]]-ProjektSporing[[#This Row],[Anslået arbejde (i timer)]])/ProjektSporing[[#This Row],[Anslået arbejde (i timer)]])>FlagProcent,1,0)),\"\")","v":0},200,{"$f":"IFERROR(IF(ProjektSporing[Faktisk varighed (i dage)]=0,\"\",IF(ABS((ProjektSporing[[#This Row],[Faktisk varighed (i dage)]]-ProjektSporing[[#This Row],[Anslået varighed (i dage)]])/ProjektSporing[[#This Row],[Anslået varighed (i dage)]])>FlagProcent,1,0)),\"\")","v":1},{"$f":"IF(COUNTA(Projektsporing!$I13,Projektsporing!$J13)<>2,\"\",DAYS360(Projektsporing!$I13,Projektsporing!$J13,FALSE))","v":60}]

{"sheet":"Installation","index":1,"n_rows":10,"n_cols":3,"rows_kept":10}
[null,"Installation"]
[]
[]
[null,"Kategorinavn","Navn på medarbejder"]
[null,"Kategori 1","Medarbejder 1"]
[null,"Kategori 2","Medarbejder 2"]
[null,"Kategori 3","Medarbejder 3"]
[null,"Kategori 4","Medarbejder 4"]
[null,"Kategori 5","Medarbejder 5"]
[null,"Kategori 6","Medarbejder 6"]